[Event "Polofinale MCR junioru 2023"]
[Site "Czech Republic"]
[Date "2023.11.14"]
[Round "4.28"]
[White "Lieber, Lukas"]
[Black "Veny, Jaume"]
[Result "0-1"]
[TimeControl "90 min per 40 moves + 15 min + 30 sec / move from move 1"]
[WhiteFideId "23700688"]
[BlackFideId "397792"]
[WhiteElo "1959"]
[BlackElo "1729"]

1. e4 {[%clk 01:25:14]} {[%emt 00:05:44]} c5 {[%clk 01:30:50]} {[%emt
00:00:11]} 2. Nf3 {[%clk 01:25:24]} {[%emt 00:00:19]} a6 {[%clk 01:30:58]}
{[%emt 00:00:23]} 3. c4 {[%clk 01:24:33]} {[%emt 00:01:20]} Nc6 {[%clk
01:31:19]} {[%emt 00:00:09]} 4. d4 {[%clk 01:24:49]} {[%emt 00:00:14]} cxd4
{[%clk 01:31:21]} {[%emt 00:00:30]} 5. Nxd4 {[%clk 01:25:05]} {[%emt 00:00:14]}
e5 {[%clk 01:31:15]} {[%emt 00:00:36]} 6. Nf3 {[%clk 01:24:31]} {[%emt
00:01:03]} Bc5 {[%clk 01:31:17]} {[%emt 00:00:29]} 7. Be2 {[%clk 01:24:09]}
{[%emt 00:00:52]} Nf6 {[%clk 01:28:48]} {[%emt 00:02:59]} 8. Nc3 {[%clk
01:20:47]} {[%emt 00:03:52]} h6 {[%clk 01:25:10]} {[%emt 00:04:08]} 9. a3
{[%clk 01:20:34]} {[%emt 00:00:39]} d6 {[%clk 01:21:54]} {[%emt 00:03:51]} 10.
h3 {[%clk 01:20:52]} {[%emt 00:00:11]} Nd4 {[%clk 01:19:55]} {[%emt 00:02:29]}
11. Bd3 {[%clk 01:18:41]} {[%emt 00:02:42]} Be6 {[%clk 01:15:42]} {[%emt
00:04:42]} 12. Nd2 {[%clk 01:15:41]} {[%emt 00:03:30]} O-O {[%clk 01:07:43]}
{[%emt 00:08:30]} 13. g4 {[%clk 01:13:27]} {[%emt 00:02:44]} Nh7 {[%clk
00:58:21]} {[%emt 00:09:52]} 14. Nf1 {[%clk 01:11:45]} {[%emt 00:01:58]} Qf6
{[%clk 00:47:55]} {[%emt 00:11:09]} 15. Ne3 {[%clk 01:10:33]} {[%emt 00:01:40]}
Ng5 {[%clk 00:37:55]} {[%emt 00:10:33]} 16. Ncd5 {[%clk 01:08:28]} {[%emt
00:02:34]} Ngf3+ {[%clk 00:37:36]} {[%emt 00:00:50]} 17. Kf1 {[%clk 01:08:57]}
{[%emt 00:00:01]} Bxd5 {[%clk 00:32:10]} {[%emt 00:05:57]} 18. Nxd5 {[%clk
01:07:30]} {[%emt 00:01:56]} Qh4 {[%clk 00:32:36]} {[%emt 00:00:05]} 19. Be3
{[%clk 01:07:18]} {[%emt 00:00:41]} Ng5 {[%clk 00:30:01]} {[%emt 00:03:04]} 20.
b4 {[%clk 01:05:46]} {[%emt 00:02:02]} Ba7 {[%clk 00:29:59]} {[%emt 00:00:33]}
21. Ra2 {[%clk 01:05:38]} {[%emt 00:00:37]} Nge6 {[%clk 00:29:00]} {[%emt
00:01:29]} 22. Kg2 {[%clk 01:04:26]} {[%emt 00:01:40]} Rac8 {[%clk 00:28:03]}
{[%emt 00:01:30]} 23. g5 {[%clk 01:03:51]} {[%emt 00:01:05]} Kh7 {[%clk
00:25:36]} {[%emt 00:02:56]} 24. Ne7 {[%clk 01:00:06]} {[%emt 00:04:15]} Rce8
{[%clk 00:21:54]} {[%emt 00:04:12]} 25. Nf5 {[%clk 01:00:35]} {[%emt 00:00:01]}
Nf4+ {[%clk 00:21:11]} {[%emt 00:01:13]} 26. Kf1 {[%clk 01:00:03]} {[%emt
00:01:01]} Qxg5 {[%clk 00:15:25]} {[%emt 00:06:17]} 27. Rg1 {[%clk 00:59:52]}
{[%emt 00:00:40]} Qh5 {[%clk 00:15:47]} {[%emt 00:00:09]} 28. Rxg7+ {[%clk
00:59:30]} {[%emt 00:00:51]} Kh8 {[%clk 00:16:13]} {[%emt 00:00:05]} 29. Qxh5
{[%clk 00:56:59]} {[%emt 00:03:01]} Nxh5 {[%clk 00:16:39]} {[%emt 00:00:04]} 30.
Rg4 {[%clk 00:56:44]} {[%emt 00:00:44]} Nf6 {[%clk 00:10:04]} {[%emt 00:07:06]}
31. Rh4 {[%clk 00:56:39]} {[%emt 00:00:33]} Nxf5 {[%clk 00:10:24]} {[%emt
00:00:12]} 32. exf5 {[%clk 00:56:38]} {[%emt 00:00:31]} Bxe3 {[%clk 00:10:41]}
{[%emt 00:00:13]} 33. fxe3 {[%clk 00:57:03]} {[%emt 00:00:05]} Kh7 {[%clk
00:10:35]} {[%emt 00:00:37]} 34. e4 {[%clk 00:56:38]} {[%emt 00:00:55]} Rg8
{[%clk 00:09:28]} {[%emt 00:01:37]} 35. Rg2 {[%clk 00:56:06]} {[%emt 00:01:02]}
Rxg2 {[%clk 00:09:33]} {[%emt 00:00:25]} 36. Kxg2 {[%clk 00:56:33]} {[%emt
00:00:02]} Rc8 {[%clk 00:08:34]} {[%emt 00:01:30]} 37. Kf2 {[%clk 00:56:22]}
{[%emt 00:00:41]} b6 {[%clk 00:06:48]} {[%emt 00:02:17]} 38. Ke3 {[%clk
00:54:17]} {[%emt 00:02:35]} Rg8 {[%clk 00:05:57]} {[%emt 00:01:21]} 39. Kf2
{[%clk 00:54:43]} {[%emt 00:00:04]} Ra8 {[%clk 00:06:15]} {[%emt 00:00:12]} 40.
a4 {[%clk 00:54:36]} {[%emt 00:00:37]} Rc8 {[%clk 00:04:24]} {[%emt 00:02:21]}
41. c5 {[%clk 00:54:18]} {[%emt 00:00:48]} dxc5 {[%clk 00:04:20]} {[%emt
00:00:35]} 42. Bxa6 {[%clk 00:54:45]} {[%emt 00:00:03]} Ra8 {[%clk 00:02:42]}
{[%emt 00:02:08]} 43. b5 {[%clk 00:54:44]} {[%emt 00:00:30]} Rd8 {[%clk
00:02:48]} {[%emt 00:00:24]} 44. a5 {[%clk 00:53:28]} {[%emt 00:01:46]} bxa5
{[%clk 00:02:37]} {[%emt 00:00:41]} 45. b6 {[%clk 00:53:55]} {[%emt 00:00:04]}
a4 {[%clk 00:02:46]} {[%emt 00:00:22]} 46. Bc4 {[%clk 00:52:03]} {[%emt
00:02:21]} Kg7 {[%clk 00:01:24]} {[%emt 00:01:51]} 47. Bd5 {[%clk 00:51:44]}
{[%emt 00:00:50]} Rb8 {[%clk 00:01:34]} {[%emt 00:00:20]} 48. b7 {[%clk
00:51:46]} {[%emt 00:00:28]} a3 {[%clk 00:01:52]} {[%emt 00:00:13]} 49. Ke3
{[%clk 00:51:25]} {[%emt 00:00:50]} Rxb7 {[%clk 00:02:04]} {[%emt 00:00:18]} 50.
Kd3 {[%clk 00:50:50]} {[%emt 00:01:05]} Rb2 {[%clk 00:02:08]} {[%emt 00:00:26]}
51. Kc3 {[%clk 00:50:25]} {[%emt 00:00:55]} Rg2 {[%clk 00:02:15]} {[%emt
00:00:23]} 52. Bb3 {[%clk 00:49:02]} {[%emt 00:01:54]} a2 {[%clk 00:02:34]}
{[%emt 00:00:10]} 53. Bxa2 {[%clk 00:48:56]} {[%emt 00:00:36]} Rxa2 {[%clk
00:02:59]} {[%emt 00:00:05]} 0-1

[Event "Polofinale MCR junioru 2023"]
[Site "Czech Republic"]
[Date "2023.11.14"]
[Round "4.29"]
[White "Zezula, Matej"]
[Black "Babula, Matej"]
[Result "1-0"]
[TimeControl "90 min per 40 moves + 15 min + 30 sec / move from move 1"]
[WhiteFideId "23725796"]
[BlackFideId "398322"]
[WhiteElo "1666"]
[BlackElo "1899"]

1. e4 {[%clk 01:30:56]} {[%emt 00:00:03]} c5 {[%clk 01:30:54]} {[%emt
00:00:06]} 2. Be2 {[%clk 01:30:45]} {[%emt 00:00:41]} e6 {[%clk 01:31:02]}
{[%emt 00:00:23]} 3. f4 {[%clk 01:30:39]} {[%emt 00:00:35]} d5 {[%clk
01:31:15]} {[%emt 00:00:16]} 4. d3 {[%clk 01:30:48]} {[%emt 00:00:21]} Nc6
{[%clk 01:31:20]} {[%emt 00:00:25]} 5. Nf3 {[%clk 01:30:52]} {[%emt 00:00:26]}
Bd6 {[%clk 01:31:29]} {[%emt 00:00:21]} 6. O-O {[%clk 01:30:33]} {[%emt
00:00:49]} Nge7 {[%clk 01:31:43]} {[%emt 00:00:16]} 7. c3 {[%clk 01:30:11]}
{[%emt 00:00:52]} O-O {[%clk 01:31:43]} {[%emt 00:00:30]} 8. Be3 {[%clk
01:28:37]} {[%emt 00:02:04]} f6 {[%clk 01:31:05]} {[%emt 00:01:08]} 9. Nbd2
{[%clk 01:19:35]} {[%emt 00:09:32]} b6 {[%clk 01:28:54]} {[%emt 00:02:41]} 10.
Kh1 {[%clk 01:17:27]} {[%emt 00:02:38]} Qc7 {[%clk 01:26:53]} {[%emt 00:02:32]}
11. Nh4 {[%clk 01:14:36]} {[%emt 00:03:20]} d4 {[%clk 01:22:39]} {[%emt
00:04:45]} 12. cxd4 {[%clk 01:13:17]} {[%emt 00:01:49]} cxd4 {[%clk 01:23:04]}
{[%emt 00:00:05]} 13. Bg1 {[%clk 01:10:53]} {[%emt 00:02:54]} Bxf4 {[%clk
01:22:55]} {[%emt 00:00:40]} 14. Nhf3 {[%clk 01:08:52]} {[%emt 00:02:31]} e5
{[%clk 01:14:36]} {[%emt 00:08:48]} 15. Qb3+ {[%clk 01:03:18]} {[%emt
00:06:04]} Kh8 {[%clk 01:14:58]} {[%emt 00:00:08]} 16. Rac1 {[%clk 01:01:50]}
{[%emt 00:01:58]} Qd6 {[%clk 01:11:00]} {[%emt 00:04:28]} 17. Nc4 {[%clk
01:01:04]} {[%emt 00:01:16]} Qb4 {[%clk 01:07:44]} {[%emt 00:03:46]} 18. Qxb4
{[%clk 00:59:20]} {[%emt 00:02:15]} Nxb4 {[%clk 01:08:10]} {[%emt 00:00:04]} 19.
Rcd1 {[%clk 00:59:27]} {[%emt 00:00:22]} Ng6 {[%clk 00:50:59]} {[%emt
00:17:40]} 20. g3 {[%clk 00:54:13]} {[%emt 00:05:45]} Bh6 {[%clk 00:51:15]}
{[%emt 00:00:13]} 21. a3 {[%clk 00:54:03]} {[%emt 00:00:41]} Nc6 {[%clk
00:50:13]} {[%emt 00:01:31]} 22. Kg2 {[%clk 00:54:02]} {[%emt 00:00:31]} Be6
{[%clk 00:46:11]} {[%emt 00:04:34]} 23. Ne1 {[%clk 00:51:26]} {[%emt 00:03:05]}
Nge7 {[%clk 00:43:02]} {[%emt 00:03:39]} 24. h4 {[%clk 00:50:55]} {[%emt
00:01:01]} Kg8 {[%clk 00:41:06]} {[%emt 00:02:26]} 25. Bf2 {[%clk 00:47:37]}
{[%emt 00:03:48]} Rfc8 {[%clk 00:37:05]} {[%emt 00:04:32]} 26. Nf3 {[%clk
00:46:17]} {[%emt 00:01:49]} Na5 {[%clk 00:30:14]} {[%emt 00:07:22]} 27. Nfd2
{[%clk 00:45:17]} {[%emt 00:01:30]} Nxc4 {[%clk 00:28:49]} {[%emt 00:01:55]} 28.
Nxc4 {[%clk 00:45:34]} {[%emt 00:00:13]} b5 {[%clk 00:27:52]} {[%emt 00:01:28]}
29. Nd6 {[%clk 00:44:32]} {[%emt 00:01:32]} Rc2 {[%clk 00:27:35]} {[%emt
00:00:46]} 30. Bf3 {[%clk 00:43:46]} {[%emt 00:01:16]} Rb8 {[%clk 00:23:13]}
{[%emt 00:04:52]} 31. g4 {[%clk 00:42:55]} {[%emt 00:01:20]} g6 {[%clk
00:21:15]} {[%emt 00:02:29]} 32. g5 {[%clk 00:40:35]} {[%emt 00:02:50]} fxg5
{[%clk 00:21:39]} {[%emt 00:00:06]} 33. Rc1 {[%clk 00:40:53]} {[%emt 00:00:12]}
Rxc1 {[%clk 00:21:51]} {[%emt 00:00:17]} 34. Rxc1 {[%clk 00:41:18]} {[%emt
00:00:05]} g4 {[%clk 00:22:11]} {[%emt 00:00:10]} 35. Rc7 {[%clk 00:40:45]}
{[%emt 00:01:03]} gxf3+ {[%clk 00:22:32]} {[%emt 00:00:09]} 36. Kxf3 {[%clk
00:41:08]} {[%emt 00:00:07]} Rb6 {[%clk 00:14:30]} {[%emt 00:08:33]} 37. Rxe7
{[%clk 00:38:39]} {[%emt 00:02:59]} Rxd6 {[%clk 00:14:53]} {[%emt 00:00:06]} 38.
Bg3 {[%clk 00:39:00]} {[%emt 00:00:08]} Bg7 {[%clk 00:13:15]} {[%emt 00:02:09]}
39. Rxg7+ {[%clk 00:39:21]} {[%emt 00:00:09]} Kxg7 {[%clk 00:13:40]} {[%emt
00:00:05]} 40. Bxe5+ {[%clk 00:39:46]} {[%emt 00:00:05]} Kf7 {[%clk 00:13:52]}
{[%emt 00:00:18]} 41. Bxd6 {[%clk 00:39:52]} {[%emt 00:00:24]} Bh3 {[%clk
00:10:24]} {[%emt 00:03:59]} 42. Kf2 {[%clk 00:28:39]} {[%emt 00:11:43]} Ke6
{[%clk 00:05:33]} {[%emt 00:05:21]} 43. Bc5 {[%clk 00:28:47]} {[%emt 00:00:22]}
a5 {[%clk 00:05:25]} {[%emt 00:00:37]} 44. Bxd4 {[%clk 00:28:17]} {[%emt
00:01:00]} b4 {[%clk 00:05:03]} {[%emt 00:00:53]} 45. axb4 {[%clk 00:27:37]}
{[%emt 00:01:10]} axb4 {[%clk 00:05:27]} {[%emt 00:00:05]} 46. Ke3 {[%clk
00:26:11]} {[%emt 00:01:55]} h6 {[%clk 00:04:34]} {[%emt 00:01:24]} 47. Bg7
{[%clk 00:22:04]} {[%emt 00:04:36]} h5 {[%clk 00:04:34]} {[%emt 00:00:30]} 48.
Bh6 {[%clk 00:20:56]} {[%emt 00:01:38]} b3 {[%clk 00:04:46]} {[%emt 00:00:19]}
49. d4 {[%clk 00:20:17]} {[%emt 00:01:09]} Bg2 {[%clk 00:04:55]} {[%emt
00:00:20]} 50. d5+ {[%clk 00:19:54]} {[%emt 00:00:53]} Ke5 {[%clk 00:05:02]}
{[%emt 00:00:23]} 51. Bf4+ {[%clk 00:20:01]} {[%emt 00:00:23]} Kf6 {[%clk
00:05:24]} {[%emt 00:00:08]} 52. Kd4 {[%clk 00:20:05]} {[%emt 00:00:25]} Bf3
{[%clk 00:05:17]} {[%emt 00:00:38]} 53. Bg5+ {[%clk 00:19:47]} {[%emt
00:00:48]} Kf7 {[%clk 00:05:39]} {[%emt 00:00:09]} 54. e5 {[%clk 00:19:31]}
{[%emt 00:00:46]} Ke8 {[%clk 00:05:51]} {[%emt 00:00:17]} 55. e6 {[%clk
00:19:30]} {[%emt 00:00:32]} 1-0

[Event "Polofinale MCR junioru 2023"]
[Site "Czech Republic"]
[Date "2023.11.14"]
[Round "4.30"]
[White "Rucabado, Stefan"]
[Black "Sadil, Antonin"]
[Result "0-1"]
[TimeControl "90 min per 40 moves + 15 min + 30 sec / move from move 1"]
[WhiteFideId "23730315"]
[BlackFideId "23735597"]
[WhiteElo "1873"]
[BlackElo "1648"]

1. e4 {[%clk 01:30:58]} c5 {[%clk 01:26:47]} {[%emt 00:04:13]} 2. Nf3 {[%clk
01:31:22]} {[%emt 00:00:06]} d6 {[%clk 01:26:30]} {[%emt 00:00:48]} 3. Bb5+
{[%clk 01:30:29]} {[%emt 00:01:23]} Nc6 {[%clk 01:26:10]} {[%emt 00:00:50]} 4.
O-O {[%clk 01:27:07]} {[%emt 00:03:52]} Bg4 {[%clk 01:23:20]} {[%emt 00:03:20]}
5. c3 {[%clk 01:26:30]} {[%emt 00:01:07]} Bxf3 {[%clk 01:22:10]} {[%emt
00:01:39]} 6. Qxf3 {[%clk 01:26:54]} {[%emt 00:00:07]} e5 {[%clk 01:19:29]}
{[%emt 00:03:12]} 7. Bxc6+ {[%clk 01:15:04]} {[%emt 00:12:20]} bxc6 {[%clk
01:19:47]} {[%emt 00:00:11]} 8. d3 {[%clk 01:15:30]} {[%emt 00:00:03]} Nf6
{[%clk 01:17:02]} {[%emt 00:03:15]} 9. Nd2 {[%clk 01:15:25]} {[%emt 00:00:35]}
d5 {[%clk 01:12:23]} {[%emt 00:05:08]} 10. Qe2 {[%clk 01:12:55]} {[%emt
00:02:59]} Bd6 {[%clk 01:10:13]} {[%emt 00:02:41]} 11. Nf3 {[%clk 01:12:50]}
{[%emt 00:00:35]} Nd7 {[%clk 01:05:13]} {[%emt 00:05:30]} 12. Re1 {[%clk
01:05:13]} {[%emt 00:08:06]} O-O {[%clk 01:04:27]} {[%emt 00:01:17]} 13. g3
{[%clk 00:54:06]} {[%emt 00:11:38]} Nb6 {[%clk 00:57:17]} {[%emt 00:07:40]} 14.
h4 {[%clk 00:47:10]} {[%emt 00:07:26]} Re8 {[%clk 00:53:26]} {[%emt 00:04:21]}
15. h5 {[%clk 00:39:28]} {[%emt 00:08:13]} c4 {[%clk 00:52:09]} {[%emt
00:01:47]} 16. dxc4 {[%clk 00:35:45]} {[%emt 00:04:13]} Nxc4 {[%clk 00:51:58]}
{[%emt 00:00:41]} 17. b3 {[%clk 00:34:41]} {[%emt 00:01:33]} Nb6 {[%clk
00:51:51]} {[%emt 00:00:38]} 18. Nh4 {[%clk 00:33:15]} Bf8 {[%clk 00:41:57]}
{[%emt 00:12:20]} 19. Qg4 {[%clk 00:32:32]} {[%emt 00:01:13]} Qd7 {[%clk
00:40:07]} {[%emt 00:02:16]} 20. Nf5 {[%clk 00:29:13]} {[%emt 00:03:53]} g6
{[%clk 00:39:43]} {[%emt 00:00:54]} 21. Ne3 {[%clk 00:14:32]} {[%emt 00:15:10]}
Qxg4 {[%clk 00:38:21]} {[%emt 00:01:52]} 22. Nxg4 {[%clk 00:15:01]} {[%emt
00:00:02]} Nd7 {[%clk 00:37:31]} {[%emt 00:01:19]} 23. hxg6 {[%clk 00:13:44]}
{[%emt 00:01:48]} hxg6 {[%clk 00:37:32]} {[%emt 00:00:29]} 24. exd5 {[%clk
00:12:18]} {[%emt 00:01:56]} cxd5 {[%clk 00:37:40]} {[%emt 00:00:21]} 25. Rd1
{[%clk 00:12:04]} {[%emt 00:00:44]} d4 {[%clk 00:36:48]} {[%emt 00:01:22]} 26.
cxd4 {[%clk 00:12:08]} {[%emt 00:00:27]} exd4 {[%clk 00:37:09]} {[%emt
00:00:10]} 27. Bb2 {[%clk 00:11:18]} {[%emt 00:01:20]} f5 {[%clk 00:36:01]}
{[%emt 00:01:38]} 28. Nh2 {[%clk 00:11:44]} {[%emt 00:00:04]} Re2 {[%clk
00:32:52]} {[%emt 00:03:39]} 29. Bxd4 {[%clk 00:12:07]} {[%emt 00:00:07]} Bc5
{[%clk 00:32:14]} {[%emt 00:01:08]} 30. Kf1 {[%clk 00:10:04]} {[%emt 00:02:32]}
Rae8 {[%clk 00:30:22]} {[%emt 00:02:21]} 31. Nf3 {[%clk 00:07:06]} {[%emt
00:03:29]} Rc2 {[%clk 00:28:49]} {[%emt 00:02:01]} 32. Rac1 {[%clk 00:04:21]}
{[%emt 00:03:15]} Ree2 {[%clk 00:27:55]} {[%emt 00:01:25]} 33. Rxc2 {[%clk
00:04:48]} {[%emt 00:00:04]} Rxc2 {[%clk 00:27:58]} {[%emt 00:00:27]} 34. Bxc5
{[%clk 00:05:14]} {[%emt 00:00:03]} Nxc5 {[%clk 00:28:11]} {[%emt 00:00:18]} 35.
Rd2 {[%clk 00:02:41]} {[%emt 00:03:03]} Rxd2 {[%clk 00:26:16]} {[%emt
00:02:25]} 36. Nxd2 {[%clk 00:03:06]} {[%emt 00:00:04]} Kf7 {[%clk 00:26:11]}
{[%emt 00:00:35]} 37. Ke2 {[%clk 00:03:26]} {[%emt 00:00:11]} Ke6 {[%clk
00:25:56]} {[%emt 00:00:44]} 38. Ke3 {[%clk 00:03:18]} {[%emt 00:00:36]} Kd5
{[%clk 00:24:27]} {[%emt 00:02:00]} 39. f3 {[%clk 00:03:37]} {[%emt 00:00:11]}
g5 {[%clk 00:23:03]} {[%emt 00:01:54]} 40. Nb1 {[%clk 00:03:17]} {[%emt
00:00:50]} Ne6 {[%clk 00:21:38]} {[%emt 00:01:56]} 41. Nc3+ {[%clk 00:13:13]}
{[%emt 00:06:04]} Kc5 {[%clk 00:37:26]} {[%emt 00:00:12]} 42. Ne2 {[%clk
00:05:56]} {[%emt 00:07:46]} a5 {[%clk 00:32:33]} {[%emt 00:05:23]} 43. a3
{[%clk 00:02:22]} {[%emt 00:04:05]} Kd5 {[%clk 00:31:35]} {[%emt 00:01:26]} 44.
Nc3+ {[%clk 00:01:47]} {[%emt 00:01:06]} Kc5 {[%clk 00:31:29]} {[%emt
00:00:34]} 45. Kd3 {[%clk 00:01:09]} {[%emt 00:01:09]} Ng7 {[%clk 00:24:55]}
{[%emt 00:07:05]} 46. Ne2 {[%clk 00:01:09]} {[%emt 00:00:31]} Ne6 {[%clk
00:24:15]} {[%emt 00:01:09]} 47. Kc3 {[%clk 00:01:26]} {[%emt 00:00:13]} g4
{[%clk 00:21:21]} {[%emt 00:03:25]} 0-1

[Event "Polofinale MCR junioru 2023"]
[Site "Czech Republic"]
[Date "2023.11.14"]
[Round "4.31"]
[White "Gregor, Alexandr"]
[Black "Steinbauer, Sebastian"]
[Result "0-1"]
[TimeControl "90 min per 40 moves + 15 min + 30 sec / move from move 1"]
[WhiteFideId "23735813"]
[BlackFideId "399272"]
[WhiteElo "1601"]
[BlackElo "1869"]

1. e4 {[%clk 01:30:46]} {[%emt 00:00:13]} e5 {[%clk 01:23:22]} {[%emt
00:07:38]} 2. Nf3 {[%clk 01:31:10]} {[%emt 00:00:06]} Nc6 {[%clk 01:23:34]}
{[%emt 00:00:18]} 3. Bc4 {[%clk 01:31:26]} {[%emt 00:00:14]} Bc5 {[%clk
01:23:17]} {[%emt 00:00:47]} 4. O-O {[%clk 01:29:52]} {[%emt 00:02:04]} d6
{[%clk 01:23:27]} {[%emt 00:00:21]} 5. d3 {[%clk 01:29:51]} {[%emt 00:00:31]}
Bg4 {[%clk 01:23:45]} {[%emt 00:00:11]} 6. c3 {[%clk 01:29:44]} {[%emt
00:00:37]} Nf6 {[%clk 01:23:52]} {[%emt 00:00:23]} 7. Bg5 {[%clk 01:28:50]}
{[%emt 00:01:25]} h6 {[%clk 01:24:03]} {[%emt 00:00:19]} 8. Bh4 {[%clk
01:29:01]} {[%emt 00:00:18]} g5 {[%clk 01:24:27]} {[%emt 00:00:06]} 9. Bg3
{[%clk 01:29:04]} {[%emt 00:00:27]} Qd7 {[%clk 01:24:45]} {[%emt 00:00:12]} 10.
Nbd2 {[%clk 01:27:24]} {[%emt 00:02:10]} O-O-O {[%clk 01:23:38]} {[%emt
00:01:38]} 11. b4 {[%clk 01:23:07]} {[%emt 00:04:47]} Bb6 {[%clk 01:23:52]}
{[%emt 00:00:16]} 12. a4 {[%clk 01:23:09]} {[%emt 00:00:28]} a5 {[%clk
01:23:53]} {[%emt 00:00:29]} 13. Qb3 {[%clk 01:13:34]} {[%emt 00:10:05]} Rdf8
{[%clk 01:23:16]} {[%emt 00:01:08]} 14. b5 {[%clk 01:11:06]} {[%emt 00:02:58]}
Nd8 {[%clk 01:21:52]} {[%emt 00:01:54]} 15. Rfe1 {[%clk 01:00:45]} {[%emt
00:10:51]} Nh5 {[%clk 01:22:04]} {[%emt 00:00:17]} 16. d4 {[%emt 00:08:29]}
Nxg3 {[%emt 00:00:09]} 17. hxg3 {[%emt 00:00:55]} f6 {[%emt 00:02:13]} 18. Bd5
{[%emt 00:00:37]} h5 {[%emt 00:01:54]} 19. Nc4 {[%emt 00:00:39]} h4 {[%emt
00:00:09]} 20. Nxb6+ {[%clk 00:48:02]} {[%emt 00:00:08]} cxb6 21. Nd2 {[%clk
00:48:12]} {[%emt 00:04:40]} hxg3 22. fxg3 {[%emt 00:00:52]} Qh7 {[%emt
00:03:16]} 23. Nc4 {[%emt 00:01:44]} Qh2+ {[%emt 00:00:14]} 24. Kf2 {[%emt
00:00:23]} f5 {[%clk 01:19:41]} {[%emt 00:00:02]} 25. Nxd6+ {[%clk 00:43:36]}
{[%emt 00:02:37]} Kb8 {[%clk 01:20:05]} {[%emt 00:00:06]} 26. exf5 {[%clk
00:42:44]} {[%emt 00:01:23]} Bxf5 {[%clk 01:20:19]} {[%emt 00:00:16]} 27. Nxf5
{[%clk 00:41:53]} {[%emt 00:01:21]} Rxf5+ {[%clk 01:20:43]} {[%emt 00:00:06]}
28. Ke2 {[%clk 00:34:04]} {[%emt 00:08:19]} Qxg3 {[%clk 01:20:57]} {[%emt
00:00:15]} 29. Rf1 {[%clk 00:32:22]} {[%emt 00:02:12]} Rxf1 {[%clk 01:19:43]}
{[%emt 00:01:44]} 30. Rxf1 {[%clk 00:32:43]} {[%emt 00:00:09]} exd4 {[%clk
01:20:10]} {[%emt 00:00:04]} 31. cxd4 {[%clk 00:31:08]} {[%emt 00:02:05]} Re8+
{[%clk 01:18:54]} {[%emt 00:01:46]} 32. Kd2 {[%clk 00:31:26]} {[%emt 00:00:12]}
Qd6 {[%clk 01:18:41]} {[%emt 00:00:42]} 33. Qc4 {[%clk 00:28:07]} {[%emt
00:03:51]} g4 {[%clk 01:16:30]} {[%emt 00:02:41]} 34. Rc1 {[%clk 00:22:02]}
{[%emt 00:06:35]} Ne6 {[%clk 01:14:34]} {[%emt 00:02:25]} 35. Bxe6 {[%clk
00:21:33]} {[%emt 00:00:59]} Rxe6 {[%clk 01:14:55]} {[%emt 00:00:09]} 36. Rf1
{[%clk 00:15:21]} {[%emt 00:06:42]} Re8 {[%clk 01:14:20]} {[%emt 00:01:04]} 37.
Rf7 {[%clk 00:08:36]} {[%emt 00:07:16]} Rc8 {[%clk 01:11:48]} {[%emt 00:03:01]}
38. Qd3 {[%clk 00:07:13]} {[%emt 00:01:54]} Qb4+ {[%clk 01:11:31]} {[%emt
00:00:47]} 39. Ke3 {[%clk 00:06:57]} {[%emt 00:00:46]} Rc3 {[%clk 01:11:21]}
{[%emt 00:00:40]} 0-1

[Event "Polofinale MCR junioru 2023"]
[Site "Czech Republic"]
[Date "2023.11.14"]
[Round "4.32"]
[White "Bednar, Milos"]
[Black "Meca, Viktor"]
[Result "1-0"]
[TimeControl "90 min per 40 moves + 15 min + 30 sec / move from move 1"]
[WhiteFideId "23709812"]
[BlackFideId "23739800"]
[WhiteElo "1833"]
[BlackElo "1642"]

1. e4 {[%clk 01:30:56]} {[%emt 00:00:03]} c5 {[%clk 01:30:50]} {[%emt
00:00:10]} 2. Nf3 {[%clk 01:31:24]} {[%emt 00:00:03]} d6 {[%clk 01:31:12]}
{[%emt 00:00:08]} 3. d4 {[%clk 01:31:50]} {[%emt 00:00:04]} cxd4 {[%clk
01:31:34]} {[%emt 00:00:07]} 4. Nxd4 {[%clk 01:32:18]} {[%emt 00:00:02]} Nf6
{[%clk 01:31:54]} {[%emt 00:00:10]} 5. Nc3 {[%emt 00:00:44]} g6 {[%emt
00:00:11]} 6. Be2 {[%emt 00:00:56]} Bg7 {[%clk 01:31:49]} {[%emt 00:00:10]} 7.
Be3 {[%emt 00:00:33]} O-O {[%clk 01:31:45]} {[%emt 00:00:05]} 8. Qd2 {[%emt
00:00:26]} Nc6 {[%emt 00:09:08]} 9. O-O {[%emt 00:07:41]} Bd7 {[%emt 00:02:46]}
10. Rac1 {[%emt 00:06:00]} Rc8 {[%emt 00:03:38]} 11. f3 {[%emt 00:04:47]} Ne5
{[%emt 00:03:06]} 12. Nd5 {[%emt 00:12:57]} Nxd5 {[%clk 01:02:10]} {[%emt
00:00:11]} 13. exd5 {[%clk 01:17:09]} {[%emt 00:00:04]} Nc4 {[%emt 00:00:08]}
14. Bxc4 {[%emt 00:00:05]} Rxc4 {[%emt 00:00:11]} 15. b3 {[%clk 01:17:59]} Rc8
{[%clk 01:03:05]} {[%emt 00:00:21]} 16. c4 {[%clk 01:14:42]} {[%emt 00:03:48]}
Re8 {[%clk 01:03:09]} {[%emt 00:00:26]} 17. Ne2 {[%clk 01:14:10]} {[%emt
00:01:01]} e6 {[%clk 00:50:21]} {[%emt 00:13:18]} 18. dxe6 {[%clk 01:14:30]}
{[%emt 00:00:10]} Bxe6 {[%clk 00:50:43]} {[%emt 00:00:08]} 19. Nc3 {[%clk
01:14:04]} {[%emt 00:00:57]} Qa5 {[%clk 00:50:17]} {[%emt 00:00:55]} 20. Bd4
{[%clk 01:14:00]} {[%emt 00:00:33]} Bf8 {[%clk 00:50:09]} {[%emt 00:00:38]} 21.
Rfd1 {[%clk 01:14:11]} {[%emt 00:00:19]} Bg7 {[%clk 00:44:27]} {[%emt
00:06:12]} 22. Bxg7 {[%clk 01:13:09]} {[%emt 00:01:32]} Kxg7 {[%clk 00:44:49]}
{[%emt 00:00:08]} 23. Ne4 {[%clk 01:11:48]} {[%emt 00:01:52]} Qxd2 {[%clk
00:44:54]} {[%emt 00:00:25]} 24. Rxd2 {[%clk 01:12:15]} {[%emt 00:00:03]} Rcd8
{[%clk 00:38:15]} {[%emt 00:07:09]} 25. Nxd6 {[%clk 01:11:55]} {[%emt
00:00:50]} Re7 {[%clk 00:38:31]} {[%emt 00:00:13]} 26. Nf5+ {[%clk 01:12:12]}
{[%emt 00:00:13]} 1-0